bitfinex/quotes_ETHUSD_20251025
["timestamp","ask_amount","ask_price","bid_price","bid_amount"]
[1761378035474,2.54071495,3935.9,3935.5,0.1272]
[1761378042439,7.13803946,3935.9,3935.5,0.1272]
[1761378042618,7.13803946,3935.9,3935.4,0.002]
[1761378042619,4.09617319,3935.5,3935.4,0.002]
[1761378042813,11.30430954,3935.5,3935.4,0.002]
[1761378042988,11.75500954,3935.5,3935.4,0.002]
[1761378043184,13.18459935,3935.5,3935.4,0.002]
[1761378043410,13.28636692,3935.5,3935.4,0.002]
[1761378045224,13.18459935,3935.5,3935.4,0.002]
[1761378046321,9.82359935,3935.5,3935.4,0.002]
[1761378046519,13.18459935,3935.5,3935.4,0.002]
[1761378046909,9.82359935,3935.5,3935.4,0.002]
[1761378047112,13.18359935,3935.5,3935.4,0.002]
[1761378050310,13.69047935,3935.5,3935.4,0.002]
[1761378055643,10.43225987,3935.5,3935.4,0.002]
[1761378055805,13.79025987,3935.5,3935.4,0.002]
[1761378058418,13.68847935,3935.5,3935.4,0.002]
[1761378066222,9.87977935,3935.5,3935.4,0.002]
[1761378066427,13.18869935,3935.5,3935.4,0.002]
[1761378066613,13.69557935,3935.5,3935.4,0.002]
[1761378067409,13.23477935,3935.5,3935.4,0.002]
[1761378068381,12.72789935,3935.5,3935.4,0.002]
[1761378069498,13.15819935,3935.5,3935.4,0.002]
[1761378070684,13.66507935,3935.5,3935.4,0.002]
[1761378070882,8.32324783,3935.1,3935.0,0.002]
[1761378071084,12.88988749,3935.1,3935.0,0.002]
[1761378071250,13.32018749,3935.1,3935.0,0.002]
[1761378072283,3.28486982,3934.7,3934.6,1e-08]
[1761378072472,12.69417922,3934.7,3934.6,1e-08]
[1761378072674,13.12447922,3934.7,3934.6,1e-08]
[1761378074657,2.54232979,3933.4,3933.3,0.14620002]
[1761378075470,2.54239442,3933.3,3933.2,0.002]
[1761378078090,2.54239442,3933.3,3933.2,0.1482]
[1761378078813,2.54239442,3933.3,3933.2,0.002]
[1761378079857,2.54239442,3933.3,3933.2,0.1482]
[1761378081173,2.54239442,3933.3,3933.2,0.002]
[1761378081790,2.54239442,3933.3,3933.2,0.1482]
[1761378082389,2.66959442,3933.3,3933.2,0.1482]
[1761378085020,0.1272,3933.3,3933.2,0.1482]
[1761378085184,2.54230959,3933.5,3933.2,0.1482]
[1761378087180,0.1272,3933.6,3933.2,0.1482]
[1761378087181,2.66940714,3933.6,3933.2,0.1482]
[1761378087503,2.54220714,3933.6,3933.2,0.1482]
[1761378087706,2.54211675,3933.8,3933.2,0.1482]
[1761378087931,2.54220052,3933.6,3933.5,0.1272]
[1761378088415,2.54226667,3933.5,3933.2,0.2754]
[1761378088719,1.5552,3934.4,3933.2,0.002]
[1761378088720,2.54238629,3933.4,3933.2,0.002]
[1761378088873,2.54238629,3933.4,3933.2,0.1482]
[1761378089767,0.1272,3933.6,3933.2,0.1482]
[1761378090387,0.1272,3933.6,3933.2,0.002]
[1761378090592,2.66942188,3933.6,3933.2,0.002]
[1761378090774,2.54237703,3933.4,3933.2,0.002]
[1761378091624,2.54237703,3933.4,3933.2,0.1482]
[1761378092508,2.54239442,3933.3,3933.2,0.002]
[1761378093886,2.54234224,3933.4,3933.2,0.002]
[1761378094990,2.54234224,3933.4,3933.2,0.1482]
[1761378097413,0.001,3933.5,3933.2,0.1482]
[1761378097414,2.54239442,3933.3,3933.2,0.1482]
[1761378097706,2.54239442,3933.3,3933.2,0.002]
[1761378100977,0.001,3933.5,3933.2,0.1482]
[1761378101510,2.54239442,3933.3,3933.2,0.002]
[1761378102278,2.66959442,3933.3,3933.2,0.002]
[1761378104310,3.14249442,3933.3,3933.2,0.002]
[1761378104881,2.66959442,3933.3,3933.2,0.002]
[1761378105719,4.04537231,3933.3,3933.2,0.002]
[1761378105920,4.604733,3932.9,3932.8,0.002]
[1761378106096,8.181233,3932.9,3932.8,0.002]
[1761378106296,8.654133,3932.9,3932.8,0.002]
[1761378107183,13.12281824,3932.9,3932.8,0.002]
[1761378107414,14.68935678,3932.9,3932.8,0.002]
[1761378109557,10.22067154,3932.9,3932.8,0.002]
[1761378109848,14.68935678,3932.9,3932.8,0.002]
[1761378114046,9.74777154,3932.9,3932.8,0.002]
[1761378114211,10.22067154,3932.9,3932.8,0.002]
[1761378115748,10.34787154,3932.9,3932.8,0.002]
[1761378116536,7.00587154,3932.9,3932.8,0.002]
[1761378116767,10.34487154,3932.9,3932.8,0.002]
[1761378124735,6.53297154,3932.9,3932.8,0.002]
[1761378125034,2.669853,3932.9,3932.8,0.002]
[1761378125241,6.006853,3932.9,3932.8,0.002]
[1761378125420,12.98841824,3932.9,3932.8,0.002]
[1761378125716,16.13633751,3932.9,3932.8,0.002]
[1761378127020,13.46133751,3932.9,3932.8,0.002]
[1761378127221,15.08412798,3932.9,3932.8,0.002]
[1761378127515,14.61120871,3932.9,3932.8,0.002]
[1761378128431,14.61020871,3932.9,3932.8,0.002]
[1761378128633,11.27420871,3932.9,3932.8,0.002]
[1761378128795,14.61020871,3932.9,3932.8,0.002]
[1761378130914,14.60920871,3932.9,3932.8,0.002]
[1761378134841,14.15840871,3932.9,3932.8,0.002]
[1761378138984,14.15640871,3932.9,3932.8,0.002]
[1761378139160,2.542653,3932.9,3932.8,0.1482]
[1761378139454,2.669853,3932.9,3932.8,0.1482]
[1761378139622,0.1272,3932.9,3932.8,0.1482]
[1761378141860,2.542653,3932.9,3932.8,0.1482]
[1761378142358,2.542653,3932.9,3932.8,0.002]
[1761378142663,2.542653,3932.9,3932.8,0.1482]
[1761378143213,2.542653,3932.9,3932.8,0.002]
[1761378143493,3.49819252,3932.9,3932.8,0.002]
[1761378143791,2.976853,3932.9,3932.8,0.002]
[1761378144466,2.542653,3932.9,3932.8,0.002]
[1761378145492,2.976853,3932.9,3932.8,0.002]
[1761378145887,5.038933,3932.9,3932.8,0.002]
[1761378148661,8.76646036,3932.9,3932.8,0.002]
[1761378148860,10.24328062,3932.9,3932.8,0.002]
[1761378154900,13.57128062,3932.9,3932.8,0.002]
[1761378160095,13.69848062,3932.9,3932.8,0.002]
[1761378166216,13.26428062,3932.9,3932.8,0.002]
[1761378166586,13.73918062,3932.9,3932.8,0.002]
[1761378168421,14.29490753,3932.9,3932.8,0.002]
[1761378168921,16.96990753,3932.9,3932.8,0.002]
[1761378170497,3.04979163,3932.5,3932.4,1e-08]
[1761378170696,12.37030114,3932.5,3932.4,1e-08]
[1761378170897,12.84520114,3932.5,3932.4,1e-08]
[1761378171096,19.2477285,3932.5,3932.4,1e-08]
[1761378171297,19.2477285,3932.5,3932.0,0.002]
[1761378171298,5.72505031,3932.1,3932.0,0.002]
[1761378171519,15.99603827,3932.1,3932.0,0.002]
[1761378171822,16.47093827,3932.1,3932.0,0.002]
[1761378172214,16.61713827,3932.1,3932.0,0.002]
[1761378173216,16.61713827,3932.1,3931.0,0.1412]
[1761378173217,2.54452926,3930.0,3929.9,0.6830221]
[1761378173416,2.54452926,3930.0,3929.4,1.35682772]
[1761378173417,2.54452926,3930.0,3929.7,0.6830221]
[1761378173731,2.54448171,3930.1,3929.7,0.6830221]
[1761378173902,2.54448171,3930.1,3929.8,0.1462]
[1761378174298,2.54454263,3930.0,3929.8,0.1462]
[1761378174501,2.54459401,3929.9,3929.8,0.1462]
[1761378174830,3.322,3930.6,3929.8,0.1462]
[1761378175001,1.5552,3930.9,3929.8,0.1462]
[1761378175200,3.72752736,3931.0,3929.8,0.1462]
[1761378175201,3.322,3930.8,3929.8,0.1462]
[1761378175912,3.72752736,3930.7,3929.8,0.1462]
[1761378176108,2.54444401,3930.2,3929.8,0.1462]
[1761378176326,2.54449954,3930.1,3929.8,0.1462]
[1761378178039,3.322,3930.8,3929.8,0.1462]
[1761378178339,0.1272,3930.2,3929.8,0.1462]
[1761378178926,2.54452988,3930.0,3929.8,0.1462]
[1761378179309,7.04852736,3930.5,3929.8,0.1462]
[1761378179639,0.1272,3930.0,3929.8,0.1462]
[1761378179841,2.67173277,3930.0,3929.8,0.1462]
[1761378180035,2.67173277,3930.0,3929.5,0.1462]
[1761378180239,2.67174821,3930.0,3929.6,0.1462]
[1761378180638,2.54460737,3929.9,3929.6,0.1462]
[1761378180816,2.54460737,3929.9,3929.5,0.1462]
[1761378180817,3.72752736,3929.9,3929.5,0.1462]
[1761378181140,2.67198827,3929.6,3929.5,0.2924]
[1761378181342,0.1272,3929.6,3929.5,0.2924]
[1761378181635,0.50688,3930.9,3929.5,0.2924]
[1761378181636,2.54439977,3930.2,3929.5,0.2924]
[1761378181804,2.54460924,3929.9,3929.6,0.1462]
[1761378182304,2.54459446,3929.9,3929.6,0.1462]
[1761378182504,3.72752736,3930.2,3929.5,0.1462]
[1761378182710,2.54478827,3929.6,3929.5,0.1462]
[1761378182931,3.32,3930.0,3929.6,0.1462]
[1761378183134,2.54460882,3929.9,3929.6,0.1462]
[1761378183343,2.54464518,3929.9,3929.6,0.1462]
[1761378183634,2.54467157,3929.8,3929.6,0.1462]
[1761378184060,3.32,3930.0,3929.6,0.1462]
[1761378184237,2.54459401,3929.9,3929.6,0.1462]
[1761378184608,2.54452691,3930.1,3929.6,0.1462]
[1761378184810,2.54442073,3930.2,3929.6,0.1462]
[1761378185009,2.54458734,3930.0,3929.6,0.1462]
[1761378185234,3.32,3930.3,3929.6,0.1462]
[1761378185235,2.54446654,3930.1,3929.6,0.1462]
[1761378185433,2.54440802,3930.2,3929.6,0.1462]
[1761378185736,2.54440038,3930.2,3929.6,0.1462]
[1761378185933,3.72752736,3930.8,3929.6,0.1462]
[1761378185934,0.50688,3930.9,3929.6,2.69097494]
[1761378186135,2.54427605,3930.4,3929.7,2.54467073]
[1761378186335,2.54427605,3930.4,3929.8,0.1462]
[1761378187110,2.5442173,3930.5,3929.8,0.1462]
[1761378187742,2.54420753,3930.5,3929.8,2.69085441]
[1761378188245,2.54420753,3930.5,3929.9,0.1462]
[1761378188935,2.54430273,3930.4,3929.9,3.4652]
[1761378189140,3.72752736,3930.8,3930.0,0.1462]
[1761378189341,2.54426081,3930.5,3930.0,0.1462]
[1761378190246,2.54414524,3930.6,3930.0,0.1462]
[1761378190422,2.54420704,3930.5,3930.0,0.1462]
[1761378190621,2.54427634,3930.4,3930.0,0.1462]
[1761378191055,2.54422114,3930.5,3930.0,0.1462]
[1761378191345,2.54427688,3930.4,3930.0,0.1462]
[1761378191573,2.67147688,3930.4,3930.0,0.1462]
[1761378191751,0.1272,3930.4,3930.1,3.72752736]
[1761378191954,2.54308157,3932.3,3930.1,3.72752736]
[1761378191955,0.98233369,3932.1,3930.2,6.54542187]
[1761378192150,2.54370706,3931.3,3930.4,3.72752736]
[1761378192356,2.54370706,3931.3,3930.5,2.54415003]
[1761378192536,2.54361097,3931.5,3930.7,2.54406616]
[1761378192924,2.54361097,3931.5,3930.8,0.1462]
[1761378193330,0.475,3932.1,3930.8,0.1462]
[1761378193331,7.04452736,3932.5,3930.9,0.1462]
[1761378193554,7.04452736,3932.5,3930.2,0.9029857]
[1761378193555,2.54337949,3931.8,3931.0,2.54382515]
[1761378193757,5.08621128,3932.2,3931.0,0.6830221]
[1761378193932,3.72752736,3931.3,3931.0,0.76380676]
[1761378194269,3.72752736,3931.3,3930.4,0.1462]
[1761378194270,2.54394791,3930.9,3930.4,0.1462]
[1761378194448,3.72752736,3931.3,3930.0,0.6830221]
[1761378194449,2.5442162,3930.5,3930.0,0.6830221]
[1761378194647,2.5442162,3930.5,3929.9,0.1462]
[1761378194648,6.27144997,3931.0,3929.9,3.4632]
[1761378194850,3.72752736,3931.0,3929.9,3.4632]
[1761378195030,2.54427066,3930.4,3930.0,0.1462]
[1761378195964,1.04359706,3931.0,3930.0,0.1462]
[1761378196150,3.72752736,3930.9,3930.0,0.1462]
[1761378196463,3.317,3931.1,3930.0,0.1462]
[1761378196464,2.54415167,3930.6,3930.0,0.1462]
[1761378197057,2.54421771,3930.5,3930.0,0.1462]
[1761378197263,2.54421771,3930.5,3929.7,0.6830221]
[1761378197771,2.54421771,3930.5,3929.8,0.1462]
[1761378199106,2.54396003,3930.9,3929.8,0.1462]
[1761378199240,2.54396003,3930.9,3929.9,0.6830221]
[1761378199566,2.54396003,3930.9,3929.7,3.316]
[1761378199567,2.54390304,3931.0,3930.1,2.54446451]
[1761378200061,6.23245018,3931.3,3930.1,2.54446451]
[1761378200062,2.54381725,3931.1,3930.1,0.1462]
[1761378200268,2.544011,3930.9,3930.2,0.1462]
[1761378200433,1.5552,3931.2,3930.2,0.1462]
[1761378200629,2.54397045,3930.9,3930.2,0.1462]
[1761378200963,1.5552,3931.5,3930.3,2.54427178]
[1761378201163,3.5464,3931.6,3930.3,2.54427178]
[1761378201164,1.5552,3931.4,3930.4,0.1462]
[1761378201467,1.5552,3931.4,3930.5,2.5441505]
[1761378201468,2.54363278,3931.4,3930.5,2.5441505]
[1761378201629,2.54363278,3931.4,3930.6,3.315]
[1761378201834,0.1272,3931.2,3930.7,0.1462]
[1761378202367,0.1272,3932.1,3931.2,2.54375254]
[1761378202535,0.1272,3932.1,3931.3,6.68939974]
[1761378202893,0.1272,3932.1,3931.6,2.54348637]
[1761378203069,0.1272,3932.1,3931.5,3.35527502]
[1761378203385,0.1272,3932.1,3931.6,0.1462]
[1761378203714,0.1272,3932.1,3931.6,2.68967962]
[1761378204056,0.1272,3932.1,3931.7,0.1462]
[1761378204458,2.67038138,3932.1,3931.5,0.1272]
[1761378204657,2.67038138,3932.1,3931.6,0.1462]
[1761378204858,0.1272,3932.1,3931.6,0.1462]
[1761378208186,0.1272,3932.1,3931.6,2.68968853]
[1761378208576,0.1272,3932.1,3931.7,0.1462]
[1761378210484,0.1272,3932.1,3931.5,2.670757]
[1761378210683,0.1272,3932.1,3931.5,2.816957]
[1761378211006,0.1272,3932.1,3931.5,0.1272]
[1761378211511,0.1272,3932.1,3931.6,3.313]
[1761378211512,2.54425105,3932.0,3931.6,3.313]
[1761378211679,2.54425105,3932.0,3931.2,0.76376398]
[1761378211680,0.2304,3931.9,3931.2,0.76376398]
[1761378211884,0.1272,3931.4,3930.4,2.69046251]
[1761378212084,0.50688,3931.8,3930.5,0.2734]
[1761378212085,0.1272,3931.1,3930.5,0.2734]
[1761378212518,0.2304,3931.9,3930.4,2.54423768]
[1761378212519,0.1272,3931.4,3930.8,0.1272]
[1761378212830,0.1272,3931.4,3930.8,3.4392]
[1761378214153,2.67083684,3931.4,3930.8,3.4392]
[1761378214285,0.1272,3931.4,3930.8,3.4392]
[1761378216515,2.67082883,3931.4,3930.8,3.4392]
[1761378218148,0.1272,3931.4,3930.8,5.98314961]
[1761378218330,0.1272,3931.4,3930.9,0.1462]
[1761378219620,2.54349522,3931.6,3931.2,0.1272]
[1761378219820,0.1272,3931.8,3931.2,3.311]
[1761378219821,2.54358177,3931.5,3931.2,3.311]
[1761378220356,3.57998899,3931.8,3931.1,0.1272]
[1761378220357,0.90940108,3931.8,3931.1,0.1272]
[1761378220668,2.54360317,3931.5,3931.1,3.311]
[1761378221345,2.67070967,3931.6,3931.1,3.311]
[1761378222015,2.54357595,3931.5,3931.1,3.311]
[1761378223159,2.54357434,3931.5,3931.1,3.311]
[1761378223647,0.1272,3931.6,3931.1,3.311]
[1761378223954,2.543583,3931.5,3931.1,3.311]
[1761378224262,0.5923,3931.6,3931.0,0.1272]
[1761378224471,2.5437366,3931.3,3931.1,3.31]
[1761378225656,2.5437366,3931.3,3930.9,0.1272]
[1761378225889,2.5437366,3931.3,3931.0,3.31]
[1761378226245,0.1272,3931.4,3930.9,3.309]
[1761378226446,0.4651,3931.2,3930.9,3.309]
[1761378226781,3.00878783,3931.3,3930.8,3.311]
[1761378226967,2.54368783,3931.3,3930.8,3.311]
[1761378227279,0.4651,3931.2,3930.8,3.311]
[1761378227941,2.54368783,3931.3,3930.8,3.311]
[1761378229687,3.00878783,3931.3,3930.8,3.311]
[1761378230054,3.00886266,3931.2,3930.8,3.311]
[1761378230484,0.4651,3931.2,3930.8,3.311]
[1761378230781,2.54369598,3931.3,3930.8,3.311]
[1761378231141,2.54369598,3931.3,3930.8,3.99551683]
[1761378231678,3.00885653,3931.2,3930.8,3.311]
[1761378232187,0.4651,3931.2,3930.8,3.311]
[1761378232541,3.00886255,3931.2,3930.8,3.311]
[1761378237269,2.54386145,3931.1,3930.8,3.99598503]
[1761378237504,0.1272,3931.4,3930.8,3.99598503]
[1761378237705,0.4651,3931.1,3930.8,3.99598503]
[1761378238506,0.1272,3931.4,3930.9,0.68498503]
[1761378238507,3.11992995,3931.4,3930.9,0.68498503]
[1761378239815,2.67082995,3931.4,3930.9,0.68498503]
[1761378240186,2.67082995,3931.4,3930.9,0.83118503]
[1761378240385,2.67082995,3931.4,3930.9,3.22888153]
[1761378240386,0.1272,3931.4,3930.9,3.22888153]
[1761378240592,0.1272,3931.4,3931.0,0.68498503]
[1761378240835,0.1272,3931.6,3931.0,0.95838503]
[1761378241005,0.1272,3931.6,3931.2,0.68498503]
[1761378241318,0.1272,3931.6,3931.3,0.68498503]
[1761378241522,0.001,3932.4,3931.4,3.306]
[1761378241726,0.1272,3931.8,3931.4,3.99098503]
[1761378242095,0.001,3932.0,3931.9,2.54329967]
[1761378242402,0.001,3932.0,3931.9,4.3361857]
[1761378242601,0.001,3932.0,3931.9,4.4823857]
[1761378243013,0.001,3932.0,3931.9,7.02568537]
[1761378243214,0.001,3932.0,3931.9,6.12269967]
[1761378243931,0.001,3932.0,3931.9,2.81669967]
[1761378244114,0.001,3932.0,3931.9,6.12169967]
[1761378245326,0.001,3932.0,3931.9,6.80576386]
[1761378246042,0.001,3932.0,3931.9,6.12169967]
[1761378246247,0.001,3932.0,3931.9,3.35452398]
[1761378246418,0.001,3932.0,3931.9,6.65952398]
[1761378246745,0.001,3932.0,3931.9,6.80572398]
[1761378246906,0.001,3932.0,3931.9,6.12169967]
[1761378247109,0.001,3932.0,3931.9,12.02392277]
[1761378247314,0.001,3932.0,3931.9,8.45168537]
[1761378247641,0.001,3932.0,3931.9,7.54869967]
[1761378248760,0.001,3932.0,3931.9,4.24469967]
[1761378248950,0.001,3932.0,3931.9,7.54869967]
[1761378251161,0.001,3932.0,3931.9,8.23141806]
[1761378251366,0.001,3932.0,3931.9,4.78121806]
[1761378251565,0.001,3932.0,3931.9,8.08421806]
[1761378252137,0.001,3932.0,3931.9,8.23041806]
[1761378253249,0.001,3932.0,3931.9,8.08421806]
[1761378254736,0.001,3932.0,3931.9,8.23041806]
[1761378255260,0.001,3932.0,3931.9,7.54769967]
[1761378255461,0.001,3932.0,3931.9,7.54969967]
[1761378257095,0.001,3932.0,3931.9,7.67689967]
[1761378257604,0.001,3932.0,3931.9,7.53069967]
[1761378259193,0.001,3932.0,3931.9,8.21341806]
[1761378261354,0.001,3932.0,3931.9,7.67689967]
[1761378261889,0.001,3932.0,3931.9,8.35935135]
[1761378262058,0.001,3932.0,3931.9,8.21115135]
[1761378262257,0.001,3932.0,3931.9,7.52869967]
[1761378262682,0.001,3932.0,3931.9,8.21127024]
[1761378264085,0.001,3932.0,3931.9,8.35747024]
[1761378264279,0.001,3932.0,3931.9,7.67489967]
[1761378267075,0.001,3932.0,3931.9,8.57788537]
[1761378267773,0.001,3932.0,3931.9,8.43168537]
[1761378268211,0.001,3932.0,3931.9,7.52869967]
[1761378271207,0.001,3932.0,3931.9,8.88552739]
[1761378272317,0.001,3932.0,3931.9,7.52869967]
[1761378278452,0.001,3932.0,3931.9,1.6844]
[1761378278738,0.4713,3932.0,3931.9,4.9804]
[1761378280239,0.4713,3932.0,3931.9,7.52369967]
[1761378281037,0.4713,3932.0,3931.9,7.52269967]
[1761378281242,0.001,3932.0,3931.9,7.52269967]
[1761378284110,0.4713,3932.0,3931.9,7.52269967]
[1761378287854,0.4713,3932.0,3931.9,4.22769967]
[1761378288018,0.4713,3932.0,3931.9,7.52069967]
[1761378288353,0.001,3932.0,3931.9,7.52069967]
[1761378290820,0.4713,3932.0,3931.9,7.52069967]
[1761378291222,0.001,3932.0,3931.9,7.52069967]
[1761378293669,0.001,3932.0,3931.9,8.89271808]
[1761378294568,0.4713,3932.0,3931.9,8.89271808]
[1761378295570,0.4713,3932.0,3931.9,7.52069967]
[1761378295871,0.4713,3932.0,3931.9,7.51969967]
[1761378296057,0.4713,3932.0,3931.9,8.89168551]
[1761378296258,0.4713,3932.0,3931.9,7.51969967]
[1761378296672,0.4713,3932.0,3931.9,8.89167613]
[1761378296977,0.4713,3932.0,3931.9,8.89067613]
[1761378297276,0.4713,3932.0,3931.9,7.51869967]
[1761378299067,0.4713,3932.0,3931.9,4.22769967]
[1761378299068,0.001,3932.0,3931.9,4.22769967]
[1761378299268,0.001,3932.0,3931.9,7.51869967]
[1761378299477,0.4411,3932.0,3931.9,7.51869967]
[1761378300171,0.4411,3932.0,3931.9,6.34750052]
[1761378300555,0.4411,3932.0,3931.9,6.34650052]
[1761378300955,0.4411,3932.0,3931.9,0.002]
[1761378301167,3.40099811,3932.0,3931.9,0.002]
[1761378301365,3.40099811,3932.0,3931.9,3.97792015]
[1761378301570,7.12652934,3932.0,3931.9,0.68792015]
[1761378301783,7.12652934,3932.0,3931.5,3.292]
[1761378301784,2.54349374,3931.6,3931.5,3.292]
[1761378301950,2.67069374,3931.6,3931.5,3.292]
[1761378302144,3.11079374,3931.6,3931.5,0.002]
[1761378302345,0.5673,3931.6,3931.5,0.002]
[1761378302580,3.77015862,3931.6,3931.5,0.002]
[1761378303677,1.22666488,3931.6,3931.5,0.002]
[1761378303845,0.5673,3931.6,3931.5,0.002]
[1761378304845,3.11079374,3931.6,3931.5,0.002]
[1761378313375,0.1272,3931.6,3931.5,0.002]
[1761378313586,0.1272,3931.8,3931.5,0.002]
[1761378313887,2.54346039,3931.7,3931.5,0.002]
[1761378314183,2.54348669,3931.7,3931.5,0.002]
[1761378314389,2.97188669,3931.7,3931.5,0.002]
[1761378315567,2.54349374,3931.6,3931.5,0.002]
[1761378315771,0.4284,3931.7,3931.5,0.002]
[1761378316973,2.54344927,3931.7,3931.5,0.002]
[1761378318201,0.1272,3931.8,3931.5,0.002]
[1761378318425,2.54340966,3931.8,3931.5,0.002]
[1761378318862,2.97180966,3931.8,3931.5,0.002]
[1761378320058,2.54349374,3931.6,3931.5,0.002]
[1761378320258,2.54349374,3931.6,3931.5,3.289]
[1761378320464,2.97189374,3931.6,3931.5,3.289]
[1761378322583,2.54343964,3931.7,3931.5,3.289]
[1761378323291,0.1272,3931.9,3931.5,3.289]
[1761378323491,2.54424261,3932.0,3931.5,3.289]
[1761378323684,2.54424261,3932.0,3931.6,0.4312]
[1761378324412,0.001,3932.0,3931.6,0.4312]
[1761378325300,2.5442877,3932.0,3931.5,3.4162]
[1761378325502,0.001,3932.0,3931.5,3.4162]
[1761378325873,2.54424302,3932.0,3931.5,3.4162]
[1761378326305,2.54424302,3932.0,3931.5,3.8474]
[1761378326507,0.001,3932.0,3931.5,3.8474]
[1761378326711,2.54424038,3932.0,3931.5,3.8474]
[1761378327206,0.001,3932.0,3931.5,5.95975811]
[1761378327399,0.001,3932.0,3931.7,0.1272]
[1761378327799,0.001,3932.0,3931.9,2.54329967]
[1761378327987,0.001,3932.0,3931.9,3.4122]
[1761378328186,0.001,3932.0,3931.9,3.8434]
[1761378328803,0.001,3932.0,3931.9,3.4122]
[1761378329318,0.001,3932.0,3931.9,3.4112]
[1761378330014,0.001,3932.0,3931.9,2.67049967]
[1761378330314,0.001,3932.0,3931.9,6.38569967]
[1761378331120,0.001,3932.0,3931.9,5.95449967]
[1761378331719,0.001,3932.0,3931.9,3.4112]
[1761378332404,0.001,3932.0,3931.9,5.95449967]
[1761378334196,0.001,3932.0,3931.9,3.4102]
[1761378336322,0.001,3932.0,3931.9,5.95349967]
[1761378336912,0.001,3932.0,3931.9,6.38469967]
[1761378339528,0.001,3932.0,3931.9,6.38669967]
[1761378343408,0.001,3932.0,3931.9,3.4102]
[1761378343793,0.001,3932.0,3931.9,3.4092]
[1761378344502,0.001,3932.0,3931.9,5.95249967]
[1761378345502,0.001,3932.0,3931.9,3.4092]
[1761378345830,0.001,3932.0,3931.9,0.1292]
[1761378346014,0.001,3932.0,3931.9,3.4092]
[1761378346221,0.4515,3932.0,3931.9,0.1292]
[1761378346601,0.4515,3932.0,3931.9,3.282]
[1761378347829,0.001,3932.0,3931.9,3.282]
[1761378348409,0.4515,3932.0,3931.9,3.282]
[1761378348631,0.4515,3932.0,3931.9,3.281]
[1761378349032,0.001,3932.0,3931.9,3.281]
[1761378350015,0.4515,3932.0,3931.9,3.281]
[1761378356718,0.4515,3932.0,3931.9,3.28]
[1761378357333,0.4515,3932.0,3931.9,0.002]
[1761378357533,0.4515,3932.0,3931.9,3.279]
[1761378360551,0.436,3932.0,3931.9,3.279]
[1761378360935,2.97923499,3932.0,3931.9,0.002]
[1761378361243,3.65867246,3932.0,3931.9,0.002]
[1761378362642,1.11543747,3932.0,3931.9,0.002]
[1761378362819,0.68043747,3932.0,3931.9,0.002]
[1761378363249,1.11543747,3932.0,3931.9,0.002]
[1761378363757,3.65867246,3932.0,3931.9,0.002]
[1761378376180,4.16555246,3932.0,3931.9,0.002]
[1761378376770,4.92947981,3932.0,3931.9,0.002]
[1761378376961,6.48467981,3932.0,3931.9,0.002]
[1761378377375,6.48467981,3932.0,3931.1,0.002]
[1761378377376,2.54375254,3931.2,3931.1,0.002]
[1761378377559,12.47738004,3931.2,3931.1,0.002]
[1761378377759,12.92838004,3931.2,3931.1,0.002]
[1761378378159,13.69250975,3931.2,3931.1,0.002]
[1761378382862,13.69250975,3931.2,3930.8,1e-08]
[1761378382863,4.60602667,3930.9,3930.8,1e-08]
[1761378383085,9.83608031,3930.9,3930.8,1e-08]
[1761378383263,10.28708031,3930.9,3930.8,1e-08]
[1761378387898,10.44538031,3930.9,3930.8,1e-08]
[1761378388665,2.54511211,3929.1,3929.0,0.6238]
[1761378389407,2.54511211,3929.1,3929.0,0.1583]
[1761378389899,0.1272,3929.3,3929.0,0.6238]
[1761378390104,2.54506527,3929.2,3929.0,0.6238]
[1761378390301,0.1272,3929.3,3929.0,0.6238]
[1761378390602,2.54511211,3929.1,3929.0,0.6238]
[1761378390892,2.54511211,3929.1,3929.0,0.1583]
[1761378391479,2.54511211,3929.1,3929.0,0.6238]
[1761378391869,2.54506536,3929.2,3929.0,0.6238]
[1761378392065,2.54524167,3928.9,3928.1,0.5927]
[1761378392301,7.8705475,3929.3,3928.2,0.4655]
[1761378392302,2.54535238,3928.8,3928.2,0.4655]
[1761378392463,2.54548331,3928.6,3928.2,0.4655]
[1761378392665,7.00584627,3929.0,3928.2,0.4655]
[1761378393177,7.00584627,3929.0,3927.7,0.1583]
[1761378393178,2.54530645,3928.8,3927.7,0.1583]
[1761378393412,3.272,3928.7,3928.1,0.4655]
[1761378393710,5.81738963,3928.7,3928.1,0.4655]
[1761378393869,2.54558366,3928.4,3928.1,0.4655]
[1761378394065,2.54552935,3928.5,3928.1,0.4655]
[1761378394265,2.54560521,3928.4,3928.1,0.4655]
[1761378394685,2.54563453,3928.3,3928.1,0.4655]
[1761378394886,0.4655,3928.9,3928.1,0.4655]
[1761378395075,2.54561666,3928.4,3928.1,0.4655]
[1761378395285,2.54562665,3928.4,3928.1,0.4655]
[1761378395597,2.54569282,3928.3,3928.1,0.4655]
[1761378396095,2.54569522,3928.2,3928.1,0.4655]
[1761378397069,2.54569522,3928.2,3927.8,0.4655]
[1761378397261,2.54569522,3928.2,3928.0,0.6117]
[1761378397966,2.54569522,3928.2,3928.0,0.1462]
[1761378398189,2.54569522,3928.2,3927.7,0.1583]
[1761378398395,2.54569522,3928.2,3927.8,0.4681]
[1761378398590,2.54576877,3928.1,3927.8,0.4681]
[1761378398982,2.54576877,3928.1,3927.7,0.1583]
[1761378399297,2.54576877,3928.1,3927.7,0.6264]
[1761378400098,2.54576877,3928.1,3927.1,3.35890363]
[1761378400099,3.73384627,3928.2,3927.6,0.1583]
[1761378400297,6.27960541,3928.2,3927.6,0.1583]
[1761378400466,0.4566,3928.4,3927.6,0.6264]
[1761378400671,2.54588884,3928.0,3927.6,0.6264]
[1761378400892,0.4566,3928.4,3927.6,0.6264]